bitfinex/quotes_SOLUSD_20250207
["timestamp","ask_amount","ask_price","bid_price","bid_amount"]
[1738910629034,19.87836736,190.42,190.34,20.38032736]
[1738910629538,4.7266,190.41,190.34,20.38032736]
[1738910630034,4.7266,190.41,190.35,19.87836736]
[1738910630937,4.7266,190.41,190.34,20.38032736]
[1738910633729,24.60496736,190.41,190.34,0.50196]
[1738910634437,4.7263,190.42,190.35,19.87836736]
[1738910634621,24.60466736,190.42,190.34,20.38032736]
[1738910635425,19.87836736,190.41,190.34,20.38032736]
[1738910635826,19.87836736,190.4,190.32,19.87836736]
[1738910636227,19.87836736,190.4,190.34,0.063]
[1738910636925,19.87836736,190.41,190.34,0.063]
[1738910637242,19.87836736,190.39,190.34,0.063]
[1738910638336,24.60566736,190.39,190.34,0.063]
[1738910638718,19.87836736,190.37,190.34,0.063]
[1738910640059,24.60616736,190.37,190.34,0.063]
[1738910641424,19.87836736,190.38,190.34,0.063]
[1738910642029,19.87836736,190.37,190.34,0.063]
[1738910643350,20.86350509,190.38,190.34,0.063]
[1738910643553,19.87836736,190.41,190.34,19.94136736]
[1738910643846,24.60446736,190.43,190.36,19.87836736]
[1738910644053,24.60446736,190.43,190.35,19.87836736]
[1738910644054,19.87836736,190.42,190.35,19.87836736]
[1738910644941,24.60476736,190.42,190.35,19.87836736]
[1738910646294,21.05100146,190.42,190.35,19.87836736]
[1738910648040,19.87836736,190.41,190.34,19.94136736]
[1738910649568,24.60506736,190.41,190.34,19.94136736]
[1738910650298,0.03,190.45,190.39,19.87836736]
[1738910650512,0.03,190.45,190.41,19.87836736]
[1738910651101,0.03,190.45,190.42,19.87836736]
[1738910651771,0.03,190.45,190.42,0.50196]
[1738910651971,0.03,190.45,190.4,114.6]
[1738910652178,19.90836736,190.45,190.4,114.6]
[1738910652391,19.87836736,190.42,190.36,10.7791]
[1738910652882,19.87836736,190.41,190.36,10.7791]
[1738910653071,19.87836736,190.41,190.36,4.28]
[1738910653261,19.87836736,190.42,190.36,4.28]
[1738910653460,4.7266,190.41,190.36,4.28]
[1738910653664,24.60476736,190.42,190.36,4.28]
[1738910654895,19.87836736,190.41,190.36,4.28]
[1738910655070,24.60476736,190.42,190.36,4.28]
[1738910655495,19.87836736,190.42,190.36,4.28]
[1738910656197,24.60486736,190.42,190.36,4.28]
[1738910658396,19.87836736,190.43,190.36,4.28]
[1738910658589,19.87836736,190.42,190.36,4.28]
[1738910659579,24.60476736,190.42,190.36,4.28]
[1738910660879,19.87836736,190.41,190.36,4.28]
[1738910662107,19.87836736,190.41,190.34,0.063]
[1738910662108,19.87836736,190.38,190.34,0.063]
[1738910662485,19.87836736,190.36,190.34,0.063]
[1738910662802,19.87836736,190.35,190.34,0.063]
[1738910664320,24.60646736,190.35,190.34,0.063]
[1738910664781,24.60566736,190.38,190.34,0.063]
[1738910664978,4.7273,190.38,190.34,0.063]
[1738910665310,24.60566736,190.38,190.34,0.063]
[1738910665512,19.87836736,190.36,190.34,0.063]
[1738910666211,19.87836736,190.37,190.34,0.063]
[1738910666506,19.87836736,190.36,190.34,0.063]
[1738910667382,24.60636736,190.36,190.34,0.063]
[1738910668481,19.87836736,190.35,190.34,0.063]
[1738910669607,24.60636736,190.36,190.34,0.063]
[1738910669995,4.728,190.36,190.34,0.063]
[1738910672513,19.87836736,190.38,190.34,0.063]
[1738910672705,4.7276,190.37,190.34,0.063]
[1738910674315,39.87836736,190.37,190.34,0.063]
[1738910674502,19.87836736,190.38,190.34,0.063]
[1738910675389,4.7276,190.37,190.34,0.063]
[1738910675810,19.87836736,190.35,190.34,0.063]
[1738910675986,33.29021589,190.35,190.34,0.063]
[1738910676188,33.29021589,190.35,190.34,0.0001]
[1738910676712,26.15196387,190.35,190.34,0.0001]
[1738910677298,17.46821534,190.35,190.34,0.0001]
[1738910678615,30.88006387,190.35,190.34,0.0001]
[1738910678808,31.86547697,190.35,190.34,0.0001]
[1738910679118,4.7293,190.3,190.22,6.169]
[1738910679412,12.74011534,190.25,190.2,1.579]
[1738910680517,17.47081534,190.25,190.2,1.579]
[1738910680722,4.7307,190.25,190.2,1.579]
[1738910681015,19.91686404,190.24,190.19,0.50196]
[1738910681197,19.91686404,190.23,190.18,0.063]
[1738910681814,19.91686404,190.2,190.18,0.063]
[1738910682017,19.91686404,190.19,190.18,0.063]
[1738910682195,39.91686404,190.22,190.18,0.063]
[1738910682395,24.12256404,190.22,190.18,0.063]
[1738910682592,20.0,190.21,190.18,0.063]
[1738910683200,19.91686404,190.21,190.18,0.063]
[1738910683400,19.91686404,190.19,190.18,0.063]
[1738910683832,19.91686404,190.19,190.16,0.063]
[1738910683833,20.0,190.17,190.16,0.063]
[1738910684018,39.91686404,190.17,190.16,0.063]
[1738910684215,19.91686404,190.18,190.16,0.063]
[1738910684399,24.12346404,190.18,190.16,0.063]
[1738910684609,39.91686404,190.17,190.16,0.063]
[1738910684809,20.0,190.17,190.16,0.063]
[1738910685526,24.12346404,190.18,190.16,0.063]
[1738910685903,19.91686404,190.17,190.16,0.063]
[1738910686426,34.31487143,190.17,190.16,0.063]
[1738910688029,38.52157143,190.17,190.16,0.063]
[1738910688328,13.41184853,190.16,190.15,0.063]
[1738910688505,33.32871257,190.16,190.15,0.063]
[1738910689521,38.52199845,190.16,190.15,0.063]
[1738910691212,20.0,190.12,190.09,0.063]
[1738910691524,44.04202808,190.1,190.09,0.063]
[1738910693732,19.91686404,190.1,190.09,0.063]
[1738910693932,24.12486404,190.11,190.09,0.063]
[1738910694440,24.12466404,190.12,190.09,0.063]
[1738910694732,19.91686404,190.12,190.09,0.063]
[1738910694934,24.12406404,190.15,190.09,0.063]
[1738910695126,24.12386404,190.16,190.09,19.97986404]
[1738910696123,24.12386404,190.16,190.09,0.063]
[1738910696333,24.12386404,190.16,190.09,0.31398]
[1738910696743,24.12386404,190.16,190.09,20.23084404]
[1738910697317,19.91686404,190.17,190.1,19.91686404]
[1738910697643,19.91686404,190.17,190.11,19.91686404]
[1738910697644,4.2067,190.17,190.11,19.91686404]
[1738910697838,4.2067,190.17,190.12,19.91686404]
[1738910698140,24.12336404,190.19,190.12,19.91686404]
[1738910698435,24.12296404,190.2,190.13,19.91686404]
[1738910698640,24.12266404,190.21,190.14,20.16784404]
[1738910699011,19.91686404,190.21,190.14,20.16784404]
[1738910699217,19.91686404,190.22,190.15,19.91686404]
[1738910699417,19.91686404,190.22,190.16,6.3053]
[1738910700134,19.91686404,190.22,190.17,0.25098]
[1738910700326,19.91686404,190.27,190.2,19.91686404]
[1738910700655,19.91686404,190.23,190.17,114.85098]
[1738910700838,19.91686404,190.23,190.17,0.25098]
[1738910701155,19.91686404,190.26,190.19,19.91686404]
[1738910701358,19.91686404,190.25,190.18,19.91686404]
[1738910701643,20.0,190.24,190.16,6.3053]
[1738910701949,20.0,190.24,190.17,0.25098]
[1738910702148,20.0,190.26,190.17,0.25098]
[1738910702328,39.91686404,190.26,190.19,20.16784404]
[1738910702527,24.12146404,190.27,190.2,19.91686404]
[1738910702736,19.91686404,190.28,190.21,20.41882404]
[1738910703667,24.12046404,190.32,190.25,19.91686404]
[1738910703875,19.91686404,190.31,190.24,19.91686404]
[1738910704066,19.91686404,190.31,190.25,0.25098]
[1738910704232,4.2036,190.32,190.26,19.91686404]
[1738910704544,24.11996404,190.34,190.27,19.91686404]
[1738910704946,19.91686404,190.33,190.27,0.25098]
[1738910705536,24.11996404,190.34,190.27,20.16784404]
[1738910705752,4.2031,190.34,190.28,19.91686404]
[1738910705950,24.14936404,190.37,190.3,19.91686404]
[1738910707350,4.2325,190.37,190.31,19.91686404]
[1738910708458,19.91686404,190.36,190.29,20.16784404]
[1738910709162,19.94686404,190.37,190.3,20.16784404]
[1738910709363,0.03,190.37,190.31,20.16784404]
[1738910709568,19.94686404,190.37,190.31,0.25098]
[1738910710477,24.14916404,190.37,190.31,0.25098]
[1738910710667,0.03,190.37,190.31,20.16784404]
[1738910710972,0.03,190.37,190.33,0.25098]
[1738910713774,0.03,190.37,190.31,24.19686404]
[1738910714072,19.91686404,190.36,190.31,4.28]
[1738910714958,19.94686404,190.37,190.31,4.28]
[1738910715160,0.03,190.37,190.31,4.28]
[1738910715548,0.03,190.37,190.31,24.19686404]
[1738910715748,0.03,190.37,190.33,19.91686404]
[1738910716261,0.03,190.37,190.35,0.25098]
[1738910716752,0.03,190.37,190.35,20.16784404]
[1738910716959,0.03,190.37,190.36,20.16784404]
[1738910717146,0.03,190.37,190.36,20.41882404]
[1738910718346,0.03,190.37,190.36,20.16784404]
[1738910718551,0.03,190.37,190.36,0.25098]
[1738910718881,0.03,190.37,190.36,25.67202404]
[1738910721166,0.03,190.37,190.36,20.41882404]
[1738910721477,0.03,190.37,190.36,0.25098]
[1738910722276,0.03,190.37,190.33,114.6]
[1738910722277,0.03,190.37,190.31,19.91686404]
[1738910722580,19.91686404,190.35,190.3,6.3101]
[1738910722750,4.203,190.34,190.3,6.3101]
[1738910722952,4.2027,190.35,190.3,6.3101]
[1738910723756,4.2025,190.36,190.31,20.16784404]
[1738910724058,0.03,190.37,190.33,19.91686404]
[1738910724565,0.03,190.37,190.32,20.16784404]
[1738910724770,19.91686404,190.36,190.3,6.3101]
[1738910724976,19.91686404,190.35,190.28,19.91686404]
[1738910725151,19.91686404,190.36,190.29,19.91686404]
[1738910725772,19.91686404,190.36,190.3,0.25098]
[1738910725977,4.2025,190.36,190.3,20.16784404]
[1738910726278,0.03,190.37,190.32,0.25098]
[1738910726453,0.03,190.37,190.32,20.16784404]
[1738910727073,0.03,190.37,190.33,19.91686404]
[1738910728183,0.03,190.37,190.33,0.25098]
[1738910728572,0.03,190.37,190.32,20.16784404]
[1738910728782,19.94686404,190.37,190.3,19.91686404]
[1738910728987,19.91686404,190.36,190.29,19.91686404]
[1738910729473,19.91686404,190.36,190.3,0.25098]
[1738910729674,19.94686404,190.37,190.3,40.16784404]
[1738910729864,0.03,190.37,190.31,19.91686404]
[1738910730064,4.2323,190.37,190.32,0.25098]
[1738910730669,0.03,190.37,190.32,19.91686404]
[1738910730873,0.03,190.37,190.33,20.16784404]
[1738910731188,19.94686404,190.37,190.3,19.91686404]
[1738910732073,19.91686404,190.32,190.25,140.96106404]
[1738910732288,4.2036,190.31,190.25,26.36106404]
[1738910732789,24.12046404,190.31,190.24,4.28]
[1738910732986,19.91686404,190.28,190.21,26.18266404]
[1738910733186,19.91686404,190.28,190.2,24.19686404]
[1738910733378,19.91686404,190.27,190.2,19.91686404]
[1738910733878,19.91686404,190.28,190.22,0.25098]
[1738910734184,19.91686404,190.28,190.22,19.91686404]
[1738910734185,4.2043,190.28,190.22,19.91686404]
[1738910734384,19.91686404,190.24,190.17,19.91686404]
[1738910734590,0.98561185,190.27,190.14,134.57986404]
[1738910734591,19.91686404,190.21,190.14,134.57986404]
[1738910734794,19.91686404,190.2,190.14,114.663]
[1738910734989,19.91686404,190.19,190.14,0.063]
[1738910735585,19.91686404,190.2,190.14,0.063]
[1738910735887,19.91686404,190.21,190.14,0.063]
[1738910736402,4.206,190.2,190.14,0.063]
[1738910737980,4.206,190.2,190.14,19.97986404]
[1738910738381,4.206,190.2,190.14,0.063]
[1738910738382,19.91686404,190.17,190.14,0.063]
[1738910738791,19.91686404,190.16,190.14,0.063]
[1738910738967,5.19194498,190.2,190.14,0.063]
[1738910738968,19.91686404,190.15,190.14,0.063]
[1738910739366,19.91686404,190.16,190.14,0.063]
[1738910739587,19.91686404,190.17,190.14,0.063]
[1738910740094,19.91686404,190.18,190.14,0.063]
[1738910740293,19.91686404,190.17,190.14,0.063]
[1738910740473,24.12376404,190.17,190.14,0.063]
[1738910740679,19.91686404,190.15,190.14,0.063]
[1738910741104,20.90310384,190.15,190.14,0.063]
[1738910741390,20.90310384,190.15,190.14,0.0001]
[1738910741391,34.31495237,190.15,190.14,0.0001]
[1738910742370,20.0,190.12,190.09,0.063]
[1738910742583,24.12516404,190.1,190.09,0.063]
[1738910743192,19.91686404,190.11,190.09,0.063]
[1738910743370,24.12486404,190.11,190.09,0.063]
[1738910744977,4.2078,190.13,190.09,0.063]
[1738910745178,19.91686404,190.14,190.09,0.063]
[1738910745380,10.517,190.17,190.09,0.063]
[1738910745381,24.12416404,190.15,190.09,0.063]
[1738910746284,19.91686404,190.13,190.09,0.063]
[1738910747287,0.98630028,190.15,190.09,0.063]
[1738910747288,19.91686404,190.11,190.09,0.063]
[1738910748001,19.91686404,190.12,190.09,0.063]
[1738910748302,19.91686404,190.13,190.09,0.063]
[1738910748599,24.12426404,190.14,190.09,0.063]
[1738910749604,19.91686404,190.13,190.09,0.063]
[1738910749790,19.91686404,190.12,190.09,0.063]
[1738910750478,24.12466404,190.12,190.09,0.063]
[1738910751301,4.2078,190.12,190.09,0.063]
[1738910751687,19.91686404,190.12,190.09,0.063]
[1738910752579,19.91686404,190.13,190.09,0.063]
[1738910752996,24.12406404,190.15,190.09,0.063]
[1738910753197,4.2072,190.15,190.09,19.97986404]
[1738910753507,24.12376404,190.17,190.1,0.50196]
[1738910753708,24.12376404,190.17,190.1,20.41882404]
[1738910754014,25.69546404,190.2,190.14,0.50196]
[1738910754189,19.91686404,190.23,190.16,19.91686404]
[1738910754717,4.2056,190.22,190.16,19.91686404]
[1738910755391,19.91686404,190.21,190.14,20.41882404]
[1738910755610,19.91686404,190.19,190.14,0.50196]
[1738910755804,19.91686404,190.19,190.12,19.91686404]
[1738910756103,19.91686404,190.17,190.1,138.79686404]
[1738910756303,19.91686404,190.16,190.11,0.50196]
[1738910756509,19.91686404,190.17,190.11,0.50196]
[1738910756686,4.2069,190.16,190.11,0.50196]
[1738910758004,24.12356404,190.18,190.11,20.41882404]
[1738910758402,19.91686404,190.15,190.09,0.063]
[1738910758605,19.91686404,190.14,190.09,0.063]
[1738910758812,4.2076,190.13,190.09,0.063]
[1738910759500,24.12426404,190.15,190.09,0.063]
[1738910760515,19.91686404,190.14,190.09,0.063]
[1738910760818,19.91686404,190.13,190.09,0.063]
[1738910761395,24.12426404,190.14,190.09,0.063]
[1738910761807,19.91686404,190.14,190.09,0.063]
[1738910761997,24.12396404,190.16,190.09,19.97986404]
[1738910763323,24.12406404,190.15,190.09,0.063]
[1738910764891,19.91686404,190.1,190.09,0.063]
[1738910765590,39.83372808,190.1,189.99,0.063]
[1738910765911,19.91686404,190.04,189.99,0.063]
[1738910766091,19.91686404,190.04,190.03,0.0001]
[1738910766291,35.31573707,190.04,190.03,0.0001]
[1738910766596,20.0,189.99,189.98,0.063]
[1738910766916,13.41184853,189.98,189.94,0.063]
[1738910767209,19.91686404,189.95,189.94,0.063]
[1738910768004,19.91686404,189.97,189.94,0.063]
[1738910768607,28.76049223,190.0,189.94,0.063]
[1738910768943,28.76049223,189.98,189.94,0.063]
[1738910769122,28.76049223,189.95,189.94,0.063]
[1738910769415,1.0,189.93,189.9,0.063]
[1738910769588,21.98771914,189.92,189.9,0.0001]
[1738910769788,20.98771914,189.92,189.9,0.0001]
[1738910770305,21.98771914,189.92,189.9,0.0001]
[1738910770510,28.76049223,189.91,189.89,0.0001]
[1738910770721,0.98775077,189.9,189.89,0.0001]
[1738910770920,60.50873523,189.9,189.89,0.0001]
[1738910771106,20.0,189.87,189.74,30.40759223]
[1738910771422,20.0,189.87,189.76,28.76049223]
[1738910771423,28.76049223,189.84,189.76,28.76049223]
[1738910771601,28.76049223,189.83,189.75,42.29783076]
[1738910771997,28.76049223,189.85,189.78,42.42332076]
[1738910772296,14.7438,189.91,189.82,29.01147223]
[1738910772297,28.76049223,189.89,189.82,29.01147223]
[1738910772496,28.76049223,189.89,189.83,13.41184853]
[1738910772939,0.98763583,189.94,189.84,0.25098]
[1738910773217,28.76049223,189.92,189.84,42.42332076]
[1738910773520,28.76049223,189.9,189.84,13.66282853]
[1738910774021,28.76049223,189.88,189.83,6.2965]
[1738910774228,28.76049223,189.87,189.82,4.28]
[1738910774522,28.76049223,189.87,189.8,28.82349223]
[1738910774702,28.76049223,189.88,189.81,42.67430076]
[1738910774902,28.76049223,189.89,189.83,13.66282853]
[1738910775339,28.76049223,189.9,189.83,29.01147223]
[1738910775499,0.98756027,189.92,189.84,0.25098]
[1738910775703,4.212,189.93,189.84,0.25098]
[1738910775704,28.76049223,189.91,189.85,13.66282853]
[1738910776411,28.76049223,189.86,189.8,0.063]
[1738910776822,28.76049223,189.85,189.8,13.72582853]
[1738910777023,28.76049223,189.85,189.8,0.063]
[1738910777203,28.76049223,189.84,189.8,0.063]
[1738910777407,28.76049223,189.83,189.8,0.063]
[1738910777815,28.76049223,189.84,189.8,0.063]
[1738910778426,29.7483674,189.85,189.8,0.063]
[1738910778611,28.76049223,189.83,189.8,0.063]
[1738910779323,32.97469223,189.84,189.8,0.063]
[1738910779938,28.76049223,189.81,189.8,0.063]
[1738910780806,28.76049223,189.82,189.8,0.063]
[1738910781002,5.2021932,189.84,189.8,0.063]
[1738910781003,32.97469223,189.84,189.8,0.063]
[1738910781208,28.76049223,189.85,189.8,0.063]
[1738910781408,28.76049223,189.81,189.8,0.063]
[1738910781607,28.76049223,189.82,189.8,0.063]
[1738910782017,10.5331,189.88,189.8,13.47484853]
[1738910782018,28.76049223,189.86,189.8,13.47484853]
[1738910782214,28.76049223,189.87,189.81,0.25098]
[1738910782423,32.97359223,189.88,189.81,0.25098]
[1738910782727,28.76049223,189.89,189.83,0.25098]
[1738910782927,28.76049223,189.91,189.85,0.25098]
[1738910783131,0.98764921,189.94,189.85,34.27857223]
[1738910783132,32.97249223,189.93,189.85,34.27857223]
[1738910783825,28.76049223,189.91,189.85,0.25098]
[1738910784128,28.76049223,189.88,189.84,6.1538]
[1738910784425,28.76049223,189.87,189.81,4.28]
[1738910784627,28.76049223,189.87,189.82,13.41184853]
[1738910784932,28.76049223,189.88,189.82,13.41184853]
[1738910785319,32.97379223,189.88,189.82,13.41184853]
[1738910785934,28.76049223,189.85,189.81,13.41184853]
[1738910786110,28.76049223,189.84,189.8,0.063]
[1738910786309,28.76049223,189.83,189.8,0.063]
[1738910786514,28.76049223,189.82,189.8,0.063]
[1738910786711,28.76049223,189.81,189.8,0.063]
[1738910787012,28.76049223,189.82,189.8,0.063]
[1738910787419,28.76049223,189.81,189.8,0.063]
[1738910788005,28.76049223,189.82,189.8,0.063]
[1738910788214,4.2136,189.86,189.8,28.82349223]
[1738910788413,4.2136,189.86,189.81,42.42332076]
[1738910788619,32.97349223,189.89,189.82,28.76049223]
[1738910788841,4.2127,189.9,189.84,13.66282853]
[1738910789412,28.76049223,189.92,189.86,13.66282853]
[1738910789617,4.2124,189.92,189.86,13.66282853]
[1738910789811,4.2124,189.92,189.83,6.1972]
[1738910789812,28.76049223,189.95,189.88,42.42332076]
[1738910790017,4.2116,189.95,189.88,42.42332076]
[1738910790421,4.211,189.98,189.91,29.01147223]
[1738910790622,4.2106,190.0,189.93,29.01147223]
[1738910791414,28.76049223,189.99,189.93,0.25098]
[1738910791842,24.2106,190.0,189.93,29.01147223]
[1738910792147,28.76049223,190.01,189.94,42.42332076]
[1738910792347,28.76049223,190.04,189.97,42.42332076]
[1738910792551,28.76049223,190.05,189.97,42.42332076]
[1738910792854,0.03,190.08,190.04,13.66282853]
[1738910793056,0.03,190.08,190.02,28.76049223]
[1738910793353,28.76049223,190.07,190.0,114.6]
[1738910793512,28.76049223,190.07,190.0,13.91380853]
[1738910793712,0.03,190.08,190.02,13.66282853]
[1738910793963,0.03,190.08,190.05,28.88598223]
[1738910794112,0.03,190.08,190.05,0.12549]
[1738910794818,0.03,190.08,190.06,13.53733853]
[1738910795226,0.03,190.08,190.04,0.25098]
[1738910795428,0.03,190.08,190.04,29.01147223]
[1738910795944,0.03,190.08,190.07,0.25098]
[1738910796513,0.03,190.08,190.07,42.67430076]
[1738910796917,0.03,190.08,190.07,13.91380853]
[1738910797414,0.03,190.08,190.07,42.67430076]
[1738910797611,0.03,190.08,190.07,163.88840076]
[1738910797831,0.03,190.08,190.07,78.04889299]
[1738910798420,0.03,190.09,190.08,20.17470853]
[1738910798625,0.03,190.09,190.08,77.69569299]
[1738910798822,0.03,190.16,190.08,78.69569299]
[1738910799051,0.03,190.16,190.15,42.67430076]
[1738910799338,0.03,190.16,190.15,13.66282853]
[1738910799644,0.03,190.16,190.13,4.28]
[1738910799820,0.03,190.16,190.14,13.66282853]
[1738910800247,0.03,190.16,190.14,42.42332076]
[1738910800454,0.03,190.16,190.14,13.66282853]
[1738910800651,0.03,190.16,190.13,4.28]
[1738910801153,28.76049223,190.14,190.06,143.36049223]
[1738910801448,28.76049223,190.14,190.05,5.2615]
[1738910801449,28.76049223,190.15,190.08,42.67430076]
[1738910801637,0.03,190.16,190.11,13.66282853]
[1738910801821,0.03,190.16,190.11,42.42332076]
[1738910802025,0.03,190.16,190.13,13.66282853]
[1738910802426,0.03,190.16,190.13,0.25098]
[1738910802655,0.03,190.16,190.15,13.66282853]
[1738910802949,0.03,190.16,190.15,13.91380853]
[1738910803347,0.03,190.16,190.15,42.67430076]
[1738910804051,0.03,190.16,190.15,13.91380853]
[1738910804431,0.03,190.16,190.15,42.67430076]
[1738910804753,0.03,190.16,190.15,47.93330076]
[1738910805352,0.0001,190.16,190.15,205.17979299]
[1738910805648,0.03,190.22,190.21,13.66282853]
[1738910805838,0.03,190.22,190.21,47.93160076]
[1738910807556,0.03,190.22,190.21,42.67430076]
[1738910808251,0.03,190.22,190.21,159.27430076]
[1738910808551,11.52176238,190.37,190.3,0.25098]
[1738910808552,32.99299223,190.37,190.3,0.25098]
[1738910808849,4.2325,190.37,190.31,42.17234076]
[1738910810348,4.2325,190.37,190.33,13.66282853]
[1738910810349,0.03,190.37,190.33,13.66282853]
[1738910810648,0.03,190.37,190.35,28.76049223]
[1738910811547,28.79049223,190.37,190.3,28.76049223]
[1738910811722,28.79049223,190.37,190.31,13.91380853]
[1738910811926,28.76049223,190.35,190.27,35.24649223]
[1738910812342,28.76049223,190.34,190.28,13.91380853]
[1738910812552,28.76049223,190.33,190.28,13.66282853]
[1738910812852,28.76049223,190.32,190.24,28.76049223]
[1738910813056,28.76049223,190.3,190.23,28.76049223]
[1738910813253,28.76049223,190.31,190.24,13.91380853]
[1738910813449,4.2038,190.3,190.24,13.91380853]
[1738910813749,28.76049223,190.29,190.24,13.91380853]
[1738910814055,28.76049223,190.29,190.22,28.76049223]
[1738910814257,28.76049223,190.27,190.2,28.76049223]
[1738910814629,28.76049223,190.27,190.22,13.53733853]
[1738910815152,4.2038,190.3,190.25,29.01147223]
[1738910815450,28.76049223,190.35,190.29,20.0]
[1738910815747,0.03,190.37,190.33,28.76049223]
[1738910816132,0.03,190.37,190.34,29.01147223]
[1738910816332,0.03,190.37,190.34,0.25098]
[1738910816952,28.76049223,190.36,190.29,28.76049223]
[1738910817123,28.76049223,190.32,190.21,120.701]
[1738910817322,20.0,190.33,190.21,120.701]
[1738910817523,4.2036,190.31,190.21,6.101]
[1738910817743,20.0,190.29,190.17,119.8581]
[1738910818024,0.98559479,190.28,190.16,10.4269]
[1738910818245,28.76049223,190.23,190.16,4.383]
[1738910818431,28.76049223,190.19,190.16,0.063]
[1738910819843,32.96699223,190.19,190.16,0.063]
[1738910820036,4.2065,190.19,190.16,0.063]
[1738910820353,32.96459223,190.29,190.17,42.17234076]
[1738910820537,28.76049223,190.27,190.2,28.76049223]
[1738910820746,51.77525959,190.27,190.19,51.77525959]
[1738910820938,51.77525959,190.27,190.2,0.25098]
[1738910821451,55.97935959,190.29,190.22,0.25098]
[1738910822157,51.77525959,190.31,190.23,0.12549]
[1738910822368,51.77525959,190.33,190.26,0.25098]
[1738910822652,51.77525959,190.33,190.27,0.12549]
[1738910822834,4.2026,190.36,190.29,51.77525959]
[1738910823646,51.80525959,190.37,190.3,0.37647]
[1738910823957,0.03,190.37,190.32,0.25098]
[1738910824153,51.80525959,190.37,190.32,0.25098]
[1738910824347,51.77525959,190.35,190.27,51.77525959]
[1738910824652,51.77525959,190.35,190.28,0.12549]
[1738910824856,51.77525959,190.33,190.25,51.77525959]
[1738910825054,51.77525959,190.29,190.21,166.37525959]
[1738910825357,51.77525959,190.27,190.19,170.69525959]
[1738910825855,51.77525959,190.27,190.2,0.37647]
[1738910826067,4.2047,190.26,190.2,0.37647]
[1738910826240,51.77525959,190.25,190.17,51.77525959]
[1738910826760,51.77525959,190.25,190.18,0.37647]
[1738910826963,4.2047,190.26,190.19,51.77525959]
[1738910827145,51.77525959,190.27,190.2,0.37647]
[1738910827351,51.77525959,190.29,190.21,51.77525959]
[1738910828364,4.2041,190.29,190.23,51.77525959]
[1738910828542,4.2041,190.29,190.24,0.12549]
[1738910828977,4.2041,190.29,190.23,51.77525959]
[1738910829164,55.97935959,190.29,190.21,51.77525959]
[1738910829339,55.97935959,190.29,190.22,0.25098]
[1738910829862,1.5405,190.36,190.24,0.12549]
[1738910829863,55.97905959,190.31,190.24,0.12549]
[1738910830037,4.2034,190.32,190.26,0.12549]
[1738910830237,4.2034,190.32,190.27,51.77525959]
[1738910830442,4.2027,190.35,190.29,51.77525959]
[1738910830664,4.2324,190.37,190.31,51.77525959]
[1738910830957,51.77525959,190.36,190.29,51.77525959]
[1738910831361,51.77525959,190.36,190.29,50.77525959]
[1738910831869,51.77525959,190.36,190.3,0.12549]
[1738910832162,4.2027,190.35,190.3,0.12549]
[1738910832342,4.2027,190.35,190.29,50.77525959]
[1738910832867,4.2025,190.36,190.31,51.77525959]
[1738910833642,0.03,190.37,190.32,0.12549]
[1738910833862,0.03,190.37,190.32,0.25098]
[1738910834167,4.2324,190.37,190.3,166.37525959]
[1738910834360,4.2324,190.37,190.31,0.12549]
[1738910834959,56.00765959,190.37,190.31,0.12549]
[1738910835170,51.77525959,190.35,190.27,51.77525959]
[1738910835457,66.51345959,190.37,190.3,0.25098]
[1738910835668,4.2324,190.37,190.31,51.77525959]
[1738910835980,4.2324,190.37,190.32,0.25098]
[1738910835981,0.03,190.37,190.32,0.25098]
[1738910836145,0.03,190.37,190.36,0.12549]
[1738910836478,0.03,190.37,190.36,13.91380853]
[1738910836654,0.03,190.37,190.36,65.68906812]
[1738910836964,0.03,190.37,190.36,180.28906812]
[1738910837266,0.03,190.37,190.36,191.67766812]
[1738910837868,0.03,190.37,190.36,192.67766812]
[1738910838262,0.03,190.37,190.36,191.67766812]
[1738910838954,0.03,190.37,190.36,192.67766812]
[1738910840355,0.03,190.37,190.36,193.67766812]